Cogmind - Beta 14 *** ADVENTURER MODE // 2024.10.09 @ 09:31:48 Player: Jefffff Result: Destroyed by S-27 Virus with Autogun Performance ------------- Evolutions (5) 2500 Regions Visited (12) 2400 Robots Destroyed (283) 1415 Value Destroyed (12090) 12090 Prototype IDs (12) 240 Alien Tech Used (0) 0 Bonus (3827) 3827 TOTAL SCORE: 22472 Bonus ------- High Alert Combat Kills 1014 Follower Combat Kills 574 Entered Garrisons 400 Used RIF Installer 1500 Entered DSFs 500 Friendly Fire -161 Cogmind --------- Core Integrity 0/1000 Matter 137/300 Energy 499/505 System Corruption 2% Temperature Cool (0) Movement Core (2200) Ox43 Location -5/Factory Parts ------- > --- POWER (2) -------- Reinforced Deuterium Engine Neutrino Core > --- PROPULSION (3) --- Carbon-fiber Leg > --- UTILITY (10) ----- Advanced Heat Sink Huge Storage Unit Improved Transmission Jammer Graphene Brace Improved Shock Absorption System Advanced Hacking Suite Experimental System Shield Improved Component Analysis Suite Improved Dynamic Insulation System > --- WEAPON (2) ------- Variable Charge Gun Hypervelocity Coil Gun > --- INVENTORY (25) --- Light Angular Momentum Engine Carbon-fiber Leg Carbon-fiber Leg Armored Huge Wheel Armored Huge Wheel Armored Huge Wheel Advanced Sensor Array Advanced Signal Interpreter Advanced System Shield Field Laser Heavy Laser Variable Charge Gun Variable Charge Gun Variable Charge Gun Disruptor Cannon Disruptor Cannon Disruptor Cannon Hypervelocity Coil Gun Mass Driver Remote Datajack Improved Plasma Cutter Segregator Peak State ------------ > --- POWER ------------ Light Angular Momentum Engine Neutrino Core > --- PROPULSION ------- Wheel Armored Huge Wheel > --- UTILITY ---------- Advanced Heat Sink Huge Storage Unit Improved Transmission Jammer Graphene Brace Improved Focal Shield Improved Thermal Shield Experimental System Shield Experimental System Shield Experimental System Shield Improved Corruption Screen > --- WEAPON ----------- Advanced Plasma Cannon KE Penetrator > --- INVENTORY -------- Reinforced Deuterium Engine Neutrino Core Armored Huge Wheel Armored Huge Wheel Armored Huge Wheel Armored Huge Wheel Advanced Signal Interpreter Improved Medium Armor Plating Improved Medium Armor Plating Improved Shock Absorption System Advanced System Shield Improved Dynamic Insulation System Disruptor Cannon Disruptor Cannon Disruptor Cannon Hypervelocity Coil Gun Hypervelocity Coil Gun Hypervelocity Coil Gun Mass Driver Remote Datajack Improved Plasma Cutter [Rating: 105] Favorites ----------- Power Micro Fission Core Engine Light Angular Momentum Engine Power Core Micro Fission Core Reactor Antimatter Reactor Propulsion Wheel Treads Light Treads Leg Armored Leg Wheel Wheel Utility Large Storage Unit Device Improved Thermal Shield Storage Large Storage Unit Processor Advanced Visual Processing Unit Hackware Hacking Suite Protection Hardened Medium Armor Plating Weapon Advanced Assault Cannon Energy Gun Particle Gun Energy Cannon Heavy Phase Cannon Ballistic Gun Heavy Assault Rifle Ballistic Cannon Advanced Assault Cannon Special Weapon Remote Datajack Impact Weapon Heavy Flail Special Melee Weapon Improved Datajack Build | -11 -10 -9 -8 -8 -8 -8 -7 -7 -7 -6 -6 -5 ------- Run | Yrd Mat Mat Mat Gar Mat Gar Fac Was Fac Fac DSF Fac Slots Evolved 10 | . . 2 2 . . . 2 . . 2 . 2 Power 1 | . . . . . . . 1 . . . . . Propulsion 1 | . . . . . . . . . . . . 1 Utility 8 | . . 2 2 . . . 1 . . 2 . 1 Weapon . | . . . . . . . . . . . . . Parts Attached 215 | 6 12 11 13 5 16 31 10 . 24 3 11 73 Power 32 | 1 2 1 1 1 . . 2 . 6 . 2 16 Engine 16 | 1 1 1 1 . . . 1 . 2 . . 9 Core 13 | . 1 . . 1 . . 1 . 2 . 2 6 Reactor 3 | . . . . . . . . . 2 . . 1 Propulsion 41 | 2 4 3 2 . 6 7 1 . 1 1 . 14 Treads 8 | . . . . . . 7 . . . . . 1 Leg 4 | . . . . . . . . . . . . 4 Wheel 29 | 2 4 3 2 . 6 . 1 . 1 1 . 9 Hover . | . . . . . . . . . . . . . Flight . | . . . . . . . . . . . . . Utility 83 | 1 2 2 6 . 8 14 2 . 10 2 7 29 Device 47 | . . . 4 . 4 11 . . 6 1 6 15 Storage 8 | 1 1 . . . 1 . 1 . . . . 4 Processor 6 | . 1 . . . . . 1 . . 1 . 3 Hackware 5 | . . 1 . . . . . . . . 1 3 Protection 17 | . . 1 2 . 3 3 . . 4 . . 4 Artifact . | . . . . . . . . . . . . . Weapon 59 | 2 4 5 4 4 2 10 5 . 7 . 2 14 Energy Gun 15 | 1 2 2 3 . . . 2 . . . . 5 Energy Cannon 11 | . . . . 1 . 3 1 . 3 . 1 2 Ballistic Gun 13 | 1 2 3 1 2 . . . . . . . 4 Ballistic Cannon 14 | . . . . 1 2 4 2 . 2 . . 3 Launcher . | . . . . . . . . . . . . . Special Weapon 2 | . . . . . . . . . 2 . . . Impact Weapon 2 | . . . . . . 1 . . . . 1 . Slashing Weapon . | . . . . . . . . . . . . . Piercing Weapon . | . . . . . . . . . . . . . Special Melee Weapon 2 | . . . . . . 2 . . . . . . Unidentified Prototypes 3 | . . . . . . . 1 . 1 . 1 . Parts Lost 66 | . 1 1 2 . 1 13 . . 3 . 9 36 Power 10 | . . 1 . . . . . . . . 2 7 Propulsion 12 | . 1 . 2 . . 3 . . . . . 6 Utility 32 | . . . . . 1 9 . . 1 . 5 16 Weapon 12 | . . . . . . 1 . . 2 . 2 7 Highest Loss Streak 10 | . 1 1 1 . 1 7 . . 2 . 4 10 To Critical Strikes . | . . . . . . . . . . . . . Average Slot Usage (%) 94 | . 98 94 94 100 99 97 94 92 91 93 91 87 Engine 2 | . 12 . 9 4 . . 7 7 1 6 4 2 Core 6 | . 1 10 . 4 9 9 6 7 6 . 4 6 Reactor 1 | . . . . . . . . . 6 6 3 . Treads 3 | . . . . . . 16 6 . . . . . Wheel 10 | . 27 22 12 18 18 . 3 7 7 6 6 7 Device 23 | . . . 12 18 25 25 38 38 34 33 30 23 Storage 8 | . 14 11 9 9 9 9 7 7 7 6 6 6 Processor 4 | . 12 11 3 . . . 6 7 7 13 13 7 Hackware 6 | . . 9 9 9 9 8 . . . . 4 14 Protection 6 | . . 8 20 18 10 9 . . 2 6 2 1 Energy Gun 2 | . 14 10 9 1 . . . . . . . 2 Energy Cannon 4 | . . . . 4 3 6 7 7 7 6 6 1 Ballistic Gun 2 | . 14 11 9 4 . . . . . . . 2 Ballistic Cannon 6 | . . . . 7 14 9 6 7 6 6 3 1 Peak Build Rating 105 | 6 12 17 23 36 46 55 65 66 69 70 76 105 Average Rating 51 | 4 10 15 20 30 43 45 62 65 65 69 71 89 On Entrance 40 | . 6 12 15 23 36 45 55 65 66 62 69 72 Naked Turns . | . . . . . . . . . . . . . Heaviest Build 137 | 13 32 32 39 48 51 54 81 81 100 101 101 137 Greatest Support 47 | 26 26 32 20 20 26 47 47 28 28 28 28 38 Greatest Overweight (x) 16 | . 2 1 12 2 2 16 2 2 3 3 3 8 Average Overweight (x) 1 | . . . 1 1 1 1 1 2 2 3 2 2 Largest Inventory Capacity 25 | 8 15 15 15 15 15 15 20 20 20 20 20 25 Average Capacity 17 | 6 13 15 15 15 15 15 16 20 20 20 20 21 Most Carried 25 | 2 15 15 15 15 15 15 20 20 20 20 20 25 Average Carried 16 | 1 12 14 14 14 14 14 16 19 19 19 18 20 Final Capacity 25 | 8 15 15 15 15 15 15 20 20 20 20 20 25 Final Carried 25 | 2 15 14 15 15 15 15 19 20 20 18 20 25 Class Distribution -------------------- 49% | Hacker-Mutant 28% | Mutant 17% | Scavenger-Mutant 4% | Commander-Mutant Dominant Class ---------------- Scavenger-Mutant | -10/Materials Scavenger-Mutant | -9/Materials Scavenger-Mutant | -8/Materials Scavenger-Mutant | -8/Garrison Hacker-Mutant | -8/Materials Hacker-Mutant | -8/Garrison Mutant | -7/Factory Mutant | -7/Waste Mutant | -7/Factory Mutant | -6/Factory Hacker-Mutant | -6/DSF Hacker-Mutant | -5/Factory Resources | -11 -10 -9 -8 -8 -8 -8 -7 -7 -7 -6 -6 -5 ----------- Run | Yrd Mat Mat Mat Gar Mat Gar Fac Was Fac Fac DSF Fac Matter Collected 5447 | 205 235 326 188 185 926 1099 216 . 490 59 243 1275 Remotely . | . . . . . . . . . . . . . Salvage Created 11739 | . 756 851 454 218 1618 1275 486 . 1514 53 465 4049 Parts 575 | . 57 56 36 9 80 71 26 . 80 2 20 138 Haulers Intercepted 15 | . 2 2 . . 6 . . . 4 . . 1 Recyclers Shooed 4 | . . . . . 1 . . . . . . 3 Parts Field Recycled . | . . . . . . . . . . . . . Retrieved Matter . | . . . . . . . . . . . . . Parts Self-Destructed . | . . . . . . . . . . . . . Prevented . | . . . . . . . . . . . . . Kills | -11 -10 -9 -8 -8 -8 -8 -7 -7 -7 -6 -6 -5 ------- Run | Yrd Mat Mat Mat Gar Mat Gar Fac Was Fac Fac DSF Fac Combat Hostiles Destroyed 188 | . 16 14 8 . 27 34 5 . 19 1 10 54 Melee 3 | . . . . . . . . . . . 1 2 Guns 57 | . 16 14 8 . . . . . . . . 19 Cannons 99 | . . . . . 27 31 5 . 16 1 8 11 AOE 7 | . . . . . . . . . 1 . . 6 Classes Destroyed 19 | . 7 3 . . 1 4 1 . 2 . 1 . Worker 14 | . 2 1 2 . 1 . . . 4 . . 4 Builder 10 | . 1 2 . . 2 . . . 2 . . 3 Tunneler 2 | . . . . . . . . . 1 . . 1 Hauler 15 | . 2 2 . . 6 . . . 4 . . 1 Recycler 16 | . 1 . . . 4 . 2 . 2 . . 7 Mechanic 1 | . . 1 . . . . . . . . . . Operator 9 | . . 3 1 . 2 . . . 1 . . 2 Watcher 27 | . 3 4 3 . 5 . 3 . 5 1 . 3 Swarmer 35 | . 6 3 . . 5 6 . . . . 3 12 Grunt 88 | . 10 6 7 1 11 14 1 . 12 . 4 22 Brawler 3 | . . . . . . 1 1 . . . . 1 Duelist 6 | . . . . . . 1 2 . . . . 3 Protector 2 | . . . . . . . 1 . . . . 1 Sentry 33 | . . 5 1 . 10 6 . . 2 1 . 8 Specialist 2 | . . . . . . . . . . . 2 . Hunter 5 | . . . . . 1 1 . . 1 . . 2 Programmer 11 | . . . . . . 3 . . 3 . . 5 Heavy 2 | . . . . . . . . . 1 . 1 . Behemoth 2 | . . . . . . 2 . . . . . . Best Kill Streak 10 | . 7 8 9 . 10 9 6 . 5 1 5 10 Combat Bots Only 9 | . 6 3 4 . 4 9 5 . 4 1 5 9 Max Kills in Single Turn 6 | . 1 2 2 1 2 1 1 . 5 1 1 6 Gunslinging 1 | . . . 1 . . . . . . . . 1 Exploded 3 | . . . . . . . . . 1 . . 3 Melee 1 | . . . . . . . . . . . 1 1 Uniques/NPCs Destroyed . | . . . . . . . . . . . . . Combat | -11 -10 -9 -8 -8 -8 -8 -7 -7 -7 -6 -6 -5 -------- Run | Yrd Mat Mat Mat Gar Mat Gar Fac Was Fac Fac DSF Fac Hostile Shots Fired 1244 | . 67 78 40 . 88 224 8 . 86 45 99 509 Missed 367 | . 17 26 6 . 26 65 3 . 35 23 22 144 Damage Taken 12055 | . 367 551 391 . 640 2068 73 . 1075 99 1241 5550 Core 1931 | . 134 168 104 . 49 162 15 . 105 4 188 1002 Absorbed by Shields 188 | . . . . . . . . . . . 96 92 Redirected to Shielding 127 | . . . 14 . 7 . . . . . . 106 Ignored by Resistances 4818 | . 118 162 113 . 188 955 38 . 448 62 365 2369 Regen/Repaired (Parts) 469 | . . 20 . . 75 . 44 7 103 . . 220 Core Remaining (%) 67 | 100 46 58 . . . 42 . . 82 . 77 . Volleys Fired 651 | . 51 77 30 25 88 114 16 . 55 7 31 157 Largest 2 | . 2 2 2 2 2 2 2 . 2 2 2 2 Hottest 179 | . 85 88 88 129 129 143 138 . 179 151 151 133 Shots Fired 1179 | . 102 134 60 45 176 205 32 . 105 14 44 262 Gun 507 | . 102 134 60 35 . . . . . . . 176 Cannon 672 | . . . . 10 176 205 32 . 105 14 44 86 Launcher . | . . . . . . . . . . . . . Special . | . . . . . . . . . . . . . Kinetic 663 | . 51 77 30 33 132 114 16 . 40 7 14 149 Thermal 381 | . 51 57 30 11 . 91 16 . 25 7 30 63 Explosive . | . . . . . . . . . . . . . Electromagnetic 135 | . . . . 1 44 . . . 40 . . 50 Robot Hit Streak 52 | . 14 16 20 8 18 36 11 . 11 14 13 52 Robot Miss Streak 5 | . 2 4 2 2 3 2 1 . 4 . 3 5 Penetration Max 3 | . . . . . 1 . . . . . . 3 Secondary Targets 11 | . 3 3 4 . . . . . . . . 1 Max Gunslinging Chain 1 | . 1 1 1 . . . . . . . . 1 Shots Hit Robots 911 | . 69 95 51 28 132 139 26 . 73 13 37 248 Core Hits 418 | . 40 35 50 14 48 47 18 . 48 3 14 101 Critical Kills 13 | . 1 1 . . . 3 . . 1 . . 7 Critical Parts Destroyed 24 | . . . . . . . . . . . 1 23 Critical Strikes 72 | . 4 1 . . 11 10 . . 3 2 3 38 Burn 3 | . 3 . . . . . . . . . . . Meltdown 6 | . . . . . . 3 . . 1 . . 2 Destroy 16 | . 1 1 . . . . . . . . . 14 Blast 25 | . . . . . 10 7 . . 2 2 2 2 Corrupt 6 | . . . . . 1 . . . . . . 5 Smash 16 | . . . . . . . . . . . 1 15 Melee Attacks 57 | . . . . . . 3 . . . . 7 47 Impact 57 | . . . . . . 3 . . . . 7 47 Slashing . | . . . . . . . . . . . . . Piercing . | . . . . . . . . . . . . . Sneak Attacks 2 | . . . . . . 1 . . . . . 1 Combat Hostiles . | . . . . . . . . . . . . . Follow-up Attacks . | . . . . . . . . . . . . . Damage Inflicted 27962 | . 792 1421 790 606 4648 4700 965 . 3496 410 1275 8859 Guns 6240 | . 792 1421 790 383 . . . . . . . 2854 Cannons 16688 | . . . . 162 4594 4643 965 . 2455 410 987 2472 Explosions 3003 | . . . . 61 54 . . . 1041 . . 1847 Melee 2020 | . . . . . . 57 . . . . 288 1675 Ramming 11 | . . . . . . . . . . . . 11 Kinetic 11923 | . 270 816 388 415 3084 2249 490 . 802 176 299 2934 Thermal 10038 | . 522 605 402 94 54 2394 475 . 1138 234 688 3432 Explosive 458 | . . . . 61 . . . . 397 . . . Electromagnetic 3512 | . . . . 36 1510 . . . 1159 . . 807 Impact 2020 | . . . . . . 57 . . . . 288 1675 Slashing . | . . . . . . . . . . . . . Piercing . | . . . . . . . . . . . . . Highest Corruption 3 | . . . . . . 3 . . 2 . 1 2 Average Corruption 1 | . . . . . . 2 . . 1 . 1 1 Corruption Purged . | . . . . . . . . . . . . . Corruption Blocked 8 | . . . . . . . . . . . . 8 Effects 62 | . . . . . . 22 . . 17 . 3 20 Message Errors 12 | . . . . . . 4 . . 3 . 1 4 Matter Fused 14 | . . . . . . 8 . . 2 . 1 3 Heat Flow Errors 6 | . . . . . . 3 . . 2 . . 1 Energy Discharges 8 | . . . . . . 2 . . 4 . . 2 Parts Fused 1 | . . . . . . . . . . . . 1 Data Loss (minor) 10 | . . . . . . 3 . . 4 . . 3 Data Loss (major) 2 | . . . . . . . . . . . . 2 Misfires 3 | . . . . . . 1 . . . . . 2 Alerts 3 | . . . . . . 1 . . 1 . . 1 Weapon Failures 3 | . . . . . . . . . 1 . 1 1 Overload Shots . | . . . . . . . . . . . . . Overflow Damage 2146 | . . . . . 207 175 24 . 344 . 51 1345 Projectiles 550 | . . . . . 203 175 24 . 71 . 12 65 Explosions 726 | . . . . . 4 . . . 273 . . 449 Melee 870 | . . . . . . . . . . . 39 831 Knockbacks 59 | . . . . 2 15 16 3 . 4 . 1 18 Impact 7 | . . . . . . . . . . . 1 6 Kinetic 47 | . . . . 2 14 13 3 . 4 . . 11 Secondary 5 | . . . . . 1 3 . . . . . 1 Self-Inflicted Damage 778 | . . . . . . . . . 467 . . 311 Shots 17 | . . . . . . . . . 9 . . 8 Rammed 1 | . . . . . . . . . . . . 1 Targets Rammed 1 | . . . . . . . . . . . . 1 Kicked . | . . . . . . . . . . . . . Crushed . | . . . . . . . . . . . . . Highest Temperature 442 | . 217 225 54 23 116 417 372 . 234 . 442 366 Average Temperature 60 | . 70 65 21 13 18 68 166 . 34 . 179 59 Received Heat Transfer 3568 | . 132 282 288 . 396 669 27 . 198 48 327 1201 Effects 6 | . . . . . . . 1 . . . 4 1 Shutdowns 4 | . . . . . . . 1 . . . 2 1 Damage (major) 2 | . . . . . . . . . . . 2 . Siege Activations . | . . . . . . . . . . . . . Robots Corrupted 16 | . . . . . 1 . . . . . 1 14 Combat Hostiles 14 | . . . . . . . . . . . 1 13 Parts Fried 33 | . . . . . 11 . . . 7 . . 15 Impact Corruptions 26 | . . . . . . . . . . . 1 25 Robots Melted 10 | . . . . . . 4 . . 2 . . 4 Combat Hostiles 8 | . . . . . . 3 . . 2 . . 3 Parts Melted 24 | . 2 2 . . . 4 . . 5 . . 11 Heat Transferred 12665 | . 1665 1406 619 222 100 2416 371 . 1300 350 766 3450 Parts Sabotaged 3 | . . . . . . . . . . . . 3 Parts Stolen . | . . . . . . . . . . . . . Parts Stripped . | . . . . . . . . . . . . . Power Chain Reactions 8 | . . . . . 1 . . . 3 . . 4 Alert | -11 -10 -9 -8 -8 -8 -8 -7 -7 -7 -6 -6 -5 ------- Run | Yrd Mat Mat Mat Gar Mat Gar Fac Was Fac Fac DSF Fac Peak Influence 1841 | . 261 368 408 1014 546 1841 847 225 327 81 253 775 Initial 812 | . . 34 132 231 425 89 812 225 138 13 49 115 Average 408 | . 119 180 278 680 287 831 788 225 120 39 116 397 Maximum Alert Level 5 | . 1 1 2 3 2 5 3 1 1 . 1 3 Low Security (%) 38 | 100 69 53 19 . 34 21 . . 85 100 77 8 Level 1 24 | . 30 46 59 8 33 7 . 100 14 . 22 54 Level 2 15 | . . . 20 42 32 11 6 . . . . 29 Level 3 14 | . . . . 48 . 24 93 . . . . 7 Level 4 4 | . . . . . . 20 . . . . . . Level 5 2 | . . . . . . 13 . . . . . . High Security . | . . . . . . . . . . . . . Max Security . | . . . . . . . . . . . . . Sterilizations 1 | . . . . . . . . . . . 1 . Squads Dispatched 41 | . 2 2 4 . 9 . 1 . 9 . 1 13 Investigation 12 | . 2 1 1 . 5 . . . 2 . . 1 Extermination 7 | . . . . . . . . . 5 . . 2 Reinforcement 11 | . . 1 1 . 1 . . . 2 . 1 5 Assault 3 | . . . . . . . 1 . . . . 2 Garrison 8 | . . . 2 . 3 . . . . . . 3 Intercept . | . . . . . . . . . . . . . Searches Triggered . | . . . . . . . . . . . . . Construction Impeded 2 | . . . . . 1 . . . . . . 1 Haulers Reinforced 1 | . . . . . . . . . 1 . . . Active Scanning Responses . | . . . . . . . . . . . . . Cargo Convoy Interrupts 1 | . . . . . . . . . 1 . . . Stealth | -11 -10 -9 -8 -8 -8 -8 -7 -7 -7 -6 -6 -5 --------- Run | Yrd Mat Mat Mat Gar Mat Gar Fac Was Fac Fac DSF Fac Distress Signals 5 | . . 1 . . 3 . . . . . . 1 Communications Jammed 24 | . . . . . . . . . . . 5 19 Distress Signals 19 | . . . . . . . . . . . . 19 Times Spotted 272 | . 19 22 17 . 47 37 8 . 30 2 12 78 Peak Tracking Total 8 | . 3 4 5 . 4 7 5 . 4 1 4 8 Tactical Retreats 14 | . . 1 1 . 3 2 . . 1 . 1 5 Traps | -11 -10 -9 -8 -8 -8 -8 -7 -7 -7 -6 -6 -5 ------- Run | Yrd Mat Mat Mat Gar Mat Gar Fac Was Fac Fac DSF Fac Traps Triggered 27 | . 4 . 1 2 2 11 1 . 4 . . 2 Indirectly . | . . . . . . . . . . . . . Trap Hack Attempts 6 | . . . . . . 6 . . . . . . Triggered . | . . . . . . . . . . . . . Disarmed 1 | . . . . . . 1 . . . . . . Reprogrammed 1 | . . . . . . 1 . . . . . . Reused . | . . . . . . . . . . . . . Traps Extracted . | . . . . . . . . . . . . . Installed . | . . . . . . . . . . . . . Triggered 1 | . . . . . . . . . 1 . . . Machines | -11 -10 -9 -8 -8 -8 -8 -7 -7 -7 -6 -6 -5 ---------- Run | Yrd Mat Mat Mat Gar Mat Gar Fac Was Fac Fac DSF Fac Machines Disabled 65 | . . 2 . 6 2 11 1 . 27 . . 16 Max in Single Turn 6 | . . 1 . 1 1 1 1 . 5 . . 6 Garrison Relay 10 | . . . . 4 . 6 . . . . . . Phase Generator 1 | . . . . 1 . . . . . . . . Machines Repaired . | . . . . . . . . . . . . . Machines Dismantled . | . . . . . . . . . . . . . Machines Sabotaged . | . . . . . . . . . . . . . Overloaded Fab Kills . | . . . . . . . . . . . . . Hacking | -11 -10 -9 -8 -8 -8 -8 -7 -7 -7 -6 -6 -5 --------- Run | Yrd Mat Mat Mat Gar Mat Gar Fac Was Fac Fac DSF Fac Machines Accessed 58 | . 8 5 1 5 16 4 2 . 11 1 . 5 Terminals 41 | . 8 4 . 5 11 4 1 . 5 1 . 2 Fabricators 3 | . . . . . . . . . 2 . . 1 Repair Stations 8 | . . 1 . . 2 . 1 . 3 . . 1 Recycling Units . | . . . . . . . . . . . . . Scanalyzers 4 | . . . . . 2 . . . 1 . . 1 Garrison Access 2 | . . . 1 . 1 . . . . . . . Total Hacks 183 | . 19 17 2 10 55 7 4 . 38 1 . 30 Successful 122 | . 13 10 1 5 43 4 4 . 20 1 . 21 Failed 61 | . 6 7 1 5 12 3 . . 18 . . 9 Catastrophic 7 | . . . . . 2 1 . . 3 . . 1 Database Lockouts . | . . . . . . . . . . . . . Manual 86 | . 19 15 . . 24 3 2 . 15 . . 8 Terminals 114 | . 19 15 . 10 37 7 2 . 15 1 . 8 Fabricators 6 | . . . . . . . . . 4 . . 2 Repair Stations 25 | . . 2 . . 4 . 2 . 13 . . 4 Recycling Units . | . . . . . . . . . . . . . Scanalyzers 35 | . . . . . 13 . . . 6 . . 16 Garrison Access 3 | . . . 2 . 1 . . . . . . . Terminal Hacks 37 | . 5 4 . 5 13 4 . . 3 1 . 2 Record 1 | . 1 . . . . . . . . . . . Robot Analysis 7 | . 3 2 . . 2 . . . . . . . Prototype ID Bank 5 | . 1 . . . 4 . . . . . . . Open Door 2 | . . . . 1 . 1 . . . . . . Open DSF 1 | . . . . . . . . . . 1 . . Emergency Access Points 1 | . . . . 1 . . . . . . . . Terminal Index 1 | . . . . . 1 . . . . . . . Garrison Index 1 | . . . . . . . . . . . . 1 Unreport Threat 13 | . . 2 . . 6 1 . . 3 . . 1 Garrison Registry 2 | . . . . 1 . 1 . . . . . . Patrol Navigation 1 | . . . . 1 . . . . . . . . Security Stations 2 | . . . . 1 . 1 . . . . . . Fabricator Hacks 3 | . . . . . . . . . 1 . . 2 Load Schematic 2 | . . . . . . . . . 1 . . 1 Build 1 | . . . . . . . . . . . . 1 Repair Station Hacks 19 | . . 2 . . 4 . 2 . 9 . . 2 Scan Component 10 | . . 1 . . 2 . 1 . 5 . . 1 Repair 9 | . . 1 . . 2 . 1 . 4 . . 1 Recycling Unit Hacks . | . . . . . . . . . . . . . Scanalyzer 28 | . . . . . 12 . . . 3 . . 13 Insert Component 12 | . . . . . 5 . . . 2 . . 5 Analyze 16 | . . . . . 7 . . . 1 . . 8 Garrison Access Hacks 2 | . . . 1 . 1 . . . . . . . Unlock Access 2 | . . . 1 . 1 . . . . . . . Unauthorized Hacks 33 | . 8 4 . . 13 . 2 . 4 . . 2 Terminals 33 | . 8 4 . . 13 . 2 . 4 . . 2 Track 1 | . . . . . 1 . . . . . . . Botnet 30 | . 8 4 . . 11 . 1 . 4 . . 2 Operators 2 | . . . . . 1 . 1 . . . . . Fabricators . | . . . . . . . . . . . . . Repair Stations . | . . . . . . . . . . . . . Recycling Units . | . . . . . . . . . . . . . Scanalyzers . | . . . . . . . . . . . . . Garrison Access . | . . . . . . . . . . . . . Data Cores Recovered 6 | . . 2 . . 2 . . . 1 . . 1 Used 2 | . . 1 . . 1 . . . . . . . Hacking Detections 47 | . 6 3 . 3 15 2 2 . 10 1 . 5 Full Trace Events 8 | . . 2 . 1 2 . . . 2 . . 1 Feedback Events . | . . . . . . . . . . . . . Feedback Blocked . | . . . . . . . . . . . . . Robot Schematics Acquired . | . . . . . . . . . . . . . Robots Built . | . . . . . . . . . . . . . Authchips . | . . . . . . . . . . . . . Time . | . . . . . . . . . . . . . Total Robot Build Rating . | . . . . . . . . . . . . . Part Schematics Acquired 11 | . . . . . 5 . . . 1 . . 5 Parts Built 2 | . . . . . . . . . . . . 2 Authchips . | . . . . . . . . . . . . . Time 84 | . . . . . . . . . . . . 84 Total Part Build Rating 8 | . . . . . . . . . . . . 8 Parts Repaired 9 | . . 1 . . 2 . 1 . 4 . . 1 Time 456 | . . 32 . . 100 . 56 . 224 . . 44 Parts Recycled . | . . . . . . . . . . . . . Recycled Matter . | . . . . . . . . . . . . . Retrieved Matter . | . . . . . . . . . . . . . Retrieved Components . | . . . . . . . . . . . . . Parts Scanalyzed 12 | . . . . . 5 . . . 2 . . 5 Part Schematics Acquired 11 | . . . . . 5 . . . 1 . . 5 Parts Damaged 2 | . . . . . . . . . 1 . . 1 Bothacking | -11 -10 -9 -8 -8 -8 -8 -7 -7 -7 -6 -6 -5 ------------ Run | Yrd Mat Mat Mat Gar Mat Gar Fac Was Fac Fac DSF Fac Used RIF Installer 3 | . . . . 2 . 1 . . . . . . Command Fork 1 | . . . . 1 . . . . . . . . Signal Jammer 1 | . . . . . . 1 . . . . . . Robots Hacked . | . . . . . . . . . . . . . Non-combat . | . . . . . . . . . . . . . Combat . | . . . . . . . . . . . . . Robot Hacks Applied . | . . . . . . . . . . . . . Relay Couplers Released 43 | . . . . 16 . 27 . . . . . . Machine Destruction 43 | . . . . 16 . 27 . . . . . . Fabnet Peak Effective % . | . . . . . . . . . . . . . Robots Rewired 14 | . . . . 7 . 7 . . . . . . Allies Hacked . | . . . . . . . . . . . . . Hacks Repelled . | . . . . . . . . . . . . . Allies | -11 -10 -9 -8 -8 -8 -8 -7 -7 -7 -6 -6 -5 -------- Run | Yrd Mat Mat Mat Gar Mat Gar Fac Was Fac Fac DSF Fac Total Allies 37 | . . . . 7 . 7 . 20 3 . . . Largest Group 20 | . . . . 6 6 4 . 20 19 . . . Highest-Rated Group 485 | . . . . 143 143 102 . 485 471 . . . Highest-Rated Ally 35 | . . . . 31 31 31 . 35 35 . . . Total Orders . | . . . . . . . . . . . . . Ally Attacks 175 | . . . . . 72 36 . . 67 . . . Total Damage 4265 | . . . . . 1429 581 . . 2255 . . . Kills 33 | . . . . . 15 3 . . 15 . . . Allies Corrupted 1 | . . . . . . . . . 1 . . . Allies Melted 1 | . . . . . . 1 . . . . . . Intel | -11 -10 -9 -8 -8 -8 -8 -7 -7 -7 -6 -6 -5 ------- Run | Yrd Mat Mat Mat Gar Mat Gar Fac Was Fac Fac DSF Fac Robot Analysis Total 6 | . 3 1 . . 2 . . . . . . . Derelict Logs Recovered . | . . . . . . . . . . . . . Drone Launches . | . . . . . . . . . . . . . Drone Recoveries . | . . . . . . . . . . . . . Exploration | -11 -10 -9 -8 -8 -8 -8 -7 -7 -7 -6 -6 -5 ------------- Run | Yrd Mat Mat Mat Gar Mat Gar Fac Was Fac Fac DSF Fac Turns Passed 14755 | 46 1095 711 306 1203 2176 2951 681 120 2921 155 325 2065 Spaces Moved 8085 | 40 782 427 175 911 1536 1002 267 86 1716 88 140 915 Core 10 | 2 . . 1 . . 7 . . . . . . Treads 1060 | . . . . . . 967 93 . . . . . Legs . | . . . . . . . . . . . . . Wheels 7015 | 38 782 427 174 911 1536 28 174 86 1716 88 140 915 Hover . | . . . . . . . . . . . . . Flight . | . . . . . . . . . . . . . Fastest Speed 50 | 50 80 95 95 95 105 105 130 130 130 145 130 105 Average Speed 137 | 88 99 99 107 106 109 245 170 130 143 145 139 132 Slowest Speed 850 | 100 110 105 650 110 110 850 245 130 145 145 145 200 Overloaded Moves . | . . . . . . . . . . . . . Propulsion Burnouts . | . . . . . . . . . . . . . Robots Hopped . | . . . . . . . . . . . . . Cave-ins Triggered . | . . . . . . . . . . . . . Exploration Rate (%) 53 | 3 94 39 17 95 95 85 7 78 55 4 95 26 Regions Visited 12 Branch Regions . Pre-discovered Areas . | . . . . . . . . . . . . . Known Exits Taken 5 | . 1 1 1 . 1 . . . . 1 . . Unknown Exits Taken 2 | 1 . . . . . . . . 1 . . . Scrap Searched . | . . . . . . . . . . . . . Spaces Dug . | . . . . . . . . . . . . . Terrain Destroyed 268 | . . . . 53 34 7 7 . 62 1 4 100 Melee . | . . . . . . . . . . . . . Projectile 81 | . . . . . 27 7 7 . 15 1 4 20 AOE 187 | . . . . 53 7 . . . 47 . . 80 Terrain Rammed . | . . . . . . . . . . . . . Walls Destroyed . | . . . . . . . . . . . . . Machines Disabled . | . . . . . . . . . . . . . Actions | -11 -10 -9 -8 -8 -8 -8 -7 -7 -7 -6 -6 -5 --------- Run | Yrd Mat Mat Mat Gar Mat Gar Fac Was Fac Fac DSF Fac Total 10588 | 47 1011 587 236 1106 1862 1297 475 97 2105 103 220 1442 Wait 1104 | . 148 50 7 76 190 21 161 4 275 . 8 164 Move 8077 | 39 781 426 175 910 1536 1001 267 85 1715 88 139 915 Hop . | . . . . . . . . . . . . . Pick Up 167 | 2 11 9 3 12 12 22 12 4 13 3 16 48 Fast Attach 51 | 6 2 2 3 . 2 5 2 . 6 . 2 21 Attach 56 | . . 2 2 . 2 9 2 . 2 3 7 27 Detach . | . . . . . . . . . . . . . Swap 108 | . 10 7 8 5 12 17 6 . 16 . 2 25 Drop 169 | . 8 14 8 15 20 21 9 4 23 2 8 37 Fire 651 | . 51 77 30 25 88 114 16 . 55 7 31 157 Melee 57 | . . . . . . 3 . . . . 7 47 Ram 1 | . . . . . . . . . . . . 1 Kick . | . . . . . . . . . . . . . Crush . | . . . . . . . . . . . . . Escape Stasis 10 | . . . . . . 10 . . . . . . Rewire 131 | . . . . 63 . 68 . . . . . . Trap 6 | . . . . . . 6 . . . . . . Miscellaneous . | . . . . . . . . . . . . . Route ------- -11/Scrapyard -10/Materials (discovered 5 exits: *Mat x3 / [*Min x2]) -9/Materials -8/Materials -8/Garrison (discovered 3 exits: *Mat x3) -8/Materials (discovered 4 exits: *Fac x3 / Gar) -8/Garrison (discovered 3 exits: *Fac x3) -7/Factory -7/Waste -7/Factory (discovered 4 exits: *Fac x3 / [*Low]) -6/Factory (discovered 2 exits: [*Low] / DSF) -6/DSF -5/Factory (discovered 1 exit: [*Fac]) History --------- Turn | Location | Event 26 | -11/Scrapyard | Discovered new exit (range 15) 47 | -11/Scrapyard | Entered Materials 276 | -10/Materials | Discovered new exit (range 4) 318 | -10/Materials | Build established: Mutant 398 | -10/Materials | Discovered new exit (range 9) 648 | -10/Materials | Discovered new exit (range 8) 778 | -10/Materials | Build established: Scavenger-Mutant 814 | -10/Materials | Discovered new exit (range 15) 869 | -10/Materials | Discovered new exit (range 16) 1035 | -10/Materials | Identified exit to Materials 1053 | -10/Materials | Core integrity fell below 50% 1142 | -10/Materials | Entered another Materials area 1142 | -9/Materials | Evolved 2 slots: Utility x2 1323 | -9/Materials | Repaired Particle Gun 1837 | -9/Materials | Discovered new exit (range 15) 1850 | -9/Materials | Identified exit to Materials 1853 | -9/Materials | Entered another Materials area 1853 | -8/Materials | Evolved 2 slots: Utility x2 1985 | -8/Materials | Garrison activated, responded to threat 2159 | -8/Materials | Identified exit to Garrison 2159 | -8/Materials | Entered Garrison 2159 | -8/Garrison | Discovered recently destroyed garrison 2205 | -8/Garrison | Garrison Relay disabled 2346 | -8/Garrison | Garrison Relay disabled 2360 | -8/Garrison | Discovered new exit (range 6) 2372 | -8/Garrison | Phase Generator disabled 2497 | -8/Garrison | Discovered new exit (range 3) 2526 | -8/Garrison | Garrison Relay disabled 2534 | -8/Garrison | Learned Materials security intel 2568 | -8/Garrison | Installed Relay Interface Framework 2756 | -8/Garrison | Garrison Relay disabled 2784 | -8/Garrison | Discovered new exit (range 11) 2796 | -8/Garrison | Discovered new exit (range 7) 2796 | -8/Garrison | Discovered new exit (range 38) 2796 | -8/Garrison | Discovered new exit (range 78) 2930 | -8/Garrison | Expanded RIF knowledge: Command Fork 3106 | -8/Garrison | Build established: Hacker-Mutant 3362 | -8/Garrison | Entered Materials 3362 | -8/Materials | Accompanied by 6 allies 3454 | -8/Materials | Build established: Commander-Mutant 3560 | -8/Materials | Discovered new exit (range 8) 3938 | -8/Materials | Discovered new exit (range 5) 4047 | -8/Materials | Build established: Hacker-Mutant 4117 | -8/Materials | Garrison activated, responded to threat 4522 | -8/Materials | Repaired Adv. Assault Cannon 4820 | -8/Materials | Discovered new exit (range 13) 5095 | -8/Materials | Repaired Recoil Nullifier 5538 | -8/Materials | Identified exit to Garrison 5538 | -8/Materials | Entered Garrison 5554 | -8/Garrison | Spotted B-75 Beast 5633 | -8/Garrison | Destroyed B-75 Beast 5661 | -8/Garrison | Lost 7 parts (2n4u1w) 6152 | -8/Garrison | Triggered checkpoint 6187 | -8/Garrison | Garrison Relay disabled 6227 | -8/Garrison | Learned Factory security intel 6358 | -8/Garrison | Triggered checkpoint 6443 | -8/Garrison | Lost 4 allies 6446 | -8/Garrison | Destroyed 9 combat bots 6592 | -8/Garrison | Discovered new exit (range 9) 6656 | -8/Garrison | Triggered checkpoint 6697 | -8/Garrison | Garrison Relay disabled 6824 | -8/Garrison | Expanded RIF knowledge: Signal Jamming 7088 | -8/Garrison | Triggered checkpoint 7190 | -8/Garrison | Triggered checkpoint 7212 | -8/Garrison | Garrison Relay disabled 7231 | -8/Garrison | Lost 3 allies 7474 | -8/Garrison | Garrison Relay disabled 7556 | -8/Garrison | Discovered new exit (range 8) 8005 | -8/Garrison | Discovered new exit (range 12) 8188 | -8/Garrison | Discovered new exit (range 15) 8188 | -8/Garrison | Discovered new exit (range 67) 8188 | -8/Garrison | Discovered new exit (range 87) 8200 | -8/Garrison | Triggered checkpoint 8231 | -8/Garrison | Garrison Relay disabled 8313 | -8/Garrison | Spotted B-75 Beast 8314 | -8/Garrison | Core integrity fell below 50% 8333 | -8/Garrison | Destroyed B-75 Beast 8363 | -8/Garrison | Lost 4 parts (1n3u) 8489 | -8/Garrison | Entered Factory 8489 | -7/Factory | Evolved 2 slots: Power x1, Utility x1 8715 | -7/Factory | Repaired Mic. Fission Core 8793 | -7/Factory | Build established: Scavenger-Mutant 8889 | -7/Factory | First assault squad dispatched 9109 | -7/Factory | Build established: Mutant 9170 | -7/Factory | Sucked down chute 9170 | -7/Factory | Entered Waste 9171 | -7/Waste | Joined by Warlord forces that had cleared the area 9253 | -7/Waste | Discovered new exit (range 12) 9290 | -7/Waste | Entered Factory 9290 | -7/Factory | Accompanied by 19 allies 9569 | -7/Factory | Repaired Mic. Fission Core 9620 | -7/Factory | Repaired Lgt. Angular Momentum Engine 9684 | -7/Factory | Repaired Antimatter Reactor 9739 | -7/Factory | Lost 8 allies 9815 | -7/Factory | Allied Derelicts emerged from ambush trap array 9885 | -7/Factory | Lost 4 allies 10115 | -7/Factory | Discovered new exit (range 4) 10118 | -7/Factory | Lost 3 allies 10245 | -7/Factory | Discovered new exit (range 13) 10688 | -7/Factory | P-60 Hacker assimilated allied NB-PB6(m) 10823 | -7/Factory | Discovered new exit (range 7) 11046 | -7/Factory | Cargo convoy interrupted 11220 | -7/Factory | Repaired Imp. Weapon Cycler 12178 | -7/Factory | Discovered new exit (range 12) 12211 | -7/Factory | Entered another Factory area 12211 | -6/Factory | Evolved 2 slots: Utility x2 12218 | -6/Factory | Spotted B-75 Beast 12274 | -6/Factory | Discovered new exit (range 9) 12365 | -6/Factory | Identified exit to DSF 12366 | -6/Factory | Entered DSF 12422 | -6/DSF | Found Prototype Hackware 12422 | -6/DSF | Identified Exp. System Shield 12426 | -6/DSF | Found Exp. System Shield 12433 | -6/DSF | Found Exp. System Shield 12464 | -6/DSF | Additional patrols routed to DSF 12562 | -6/DSF | Discovered new exit (range 14) 12582 | -6/DSF | Lost 3 parts (1p1u1w) 12623 | -6/DSF | Sterilization system engaged 12643 | -6/DSF | Ambient heat levels rising (+10) 12644 | -6/DSF | Lost 4 parts (1p3u) 12658 | -6/DSF | Ambient heat levels rising (+10) 12673 | -6/DSF | Ambient heat levels rising (+10) 12688 | -6/DSF | Ambient heat levels rising (+10) 12691 | -6/DSF | Entered Factory 12691 | -5/Factory | Evolved 2 slots: Propulsion x1, Utility x1 12715 | -5/Factory | Build established: Hacker-Mutant 12770 | -5/Factory | Lost 3 parts (3u) 12842 | -5/Factory | Lost 4 parts (1p2u1w) 12859 | -5/Factory | Destroyed 9 combat bots 13063 | -5/Factory | Repaired Arm. Huge Wheel 13270 | -5/Factory | Core integrity fell below 50% 13305 | -5/Factory | Lost 10 parts (2p2n5u1w) 13451 | -5/Factory | Fabricated Imp. Deuterium Engine (x2) 13764 | -5/Factory | Discovered new exit (range 10) 13999 | -5/Factory | Destroyed 8 combat bots 14191 | -5/Factory | First assault squad dispatched 14374 | -5/Factory | Core integrity fell below 20% 14414 | -5/Factory | Lost 5 parts (2n1u2w) 14564 | -5/Factory | Destroyed 7 combat bots 14572 | -5/Factory | Lost 5 parts (2p2u1w) 14756 | -5/Factory | Destroyed by S-27 Virus with Autogun Last Messages --------------- 14672_ G-50 Soldier suffers critical hit (Destroy). 14672_ Destroyed Carbon-fiber Leg. 14672_ HV Slug penetrates Wall. 14675_ HV Slug penetrates G-50 Soldier. 14678_ HV Slug penetrates Wall. 14679_ Hyp. Coil Gun destroyed. 14681_ Imp. Focal Shield destroyed. 14685_ G-50 Soldier destroyed. 14685_ HV Slug penetrates Door. 14685_ HV Slug penetrates Wall. 14692_ Acquired 70 matter. 14692_ ALERT: Suspicious intruders detected, dispatching Specialist reinforcements to area. 14695_ Acquired Lgt. Angular Momentum Engine. 14702_ Acquired Hvy. Laser. 14750_ HV Slug penetrates S-27 Virus. 14752_ Arm. Huge Wheel destroyed. 14754_ HV Slug penetrates S-27 Virus. 14754_ Imp. Light Armor Plating destroyed. Map ----- +----------------------------------------------------+ | #????????????????# """" ###########??? | | #????????????????# # #??? | | ##########?????#########+### #??? | | * ^ #??? | | #??? | | % ^ #### | | ! ! ^ ##"" | | ^ ##"" | | =%% ###########+#### ########### | | """"###### ????# #?????????# | | # ###????# """ """ "????? #?????????# ! | | ###??????# ""? """ ?????# #?????????# | | ?????????# ""? """ ????## #?????????# "" = | | ?????????# ??? ?????+ +?????????# " | | ?????????# ??? ?????# #??????? " | | ##########+#####+####### ####### " | | | | R ! ! | | #####+## | | #+##############+## """ """ """ """ ???? ??# | | # ????????????????# """ """ """ """ ??? ???### | | #????????????????## R """ """ """ """ #????????? | | ?????????????????# #????????? | | ?????????????????+ ! o ????????? | | ?????????????????# u #???????????? | | ?????????????????# @ ##########???????????? | | ?????????????????###### #????????????????????? | | ??????????????????????# #????????????????????? | | ??????????????????????# #????????????????????? | | ?????????????????????? #????????????????????? | | ????????????????????? #????????????????????? | | ???????????????????? #????????????????????? | | ??????????????????? #????????????????????? | | ?????????????????? s#????????????????????? | | ?????????????????? s ????????????????????? | | ????????????????? s ????????????????????? | | ????????????????######### k ????????????????????? | | ????????????????????????? ???????????????????? | | ????????????????????????? ???????????????????? | | ????????????????????????? s???????????????????? | | ????????????????????????? ?????????????????????? | | ?????????????????????????????????????????????????? | | ?????????????????????????????????????????????????? | | ?????????????????????????????????????????????????" | | ?????????????????????????????????????????????""""" | | ???????????????????????????????????????????" """"" | | ??????????????????????????????????????????? | | ??????????????????????????????????????????? | | ?????????????????????????????????????????? | | ?????????????????????????????????????????? | +----------------------------------------------------+ Best States ------------- Heat Dissipation 86 Energy Generation 35 Energy Capacity 570 Matter Stores 300 Matter Capacity 300 Sight Range 20 Robot Scan Range 15 Terrain Scan Density 10 Jamming Range 14 EM Shielding 3 Corruption Block 28 Armor Coverage 300 Resistance: KI 45 Resistance: TH 45 Resistance: EX 70 Resistance: EM 35 Resistance: I 20 Resistance: S 20 Resistance: P 20 Power Shielding 66 Utility Shielding 33 Weapon Cycling 20 Evasion (%) 44 Target Analysis 6 Core Analysis 6 Recoil Reduction 8 Energy Filtering 30 Kinecelleration 40 Offensive Hacking 24 Defensive Hacking 48 Item Schematics ----------------- Imp. Deuterium Engine | -8/Materials | Scanalyzed Plasma Cutter | -8/Materials | Scanalyzed Recoil Nullifier | -8/Materials | Scanalyzed Mass Driver | -8/Materials | Scanalyzed Imp. Shock Absorption System | -8/Materials | Scanalyzed Adv. Plasma Cannon | -7/Factory | Scanalyzed Rnf. Deuterium Engine | -5/Factory | Scanalyzed Imp. Corruption Screen | -5/Factory | Scanalyzed Carbon-fiber Leg | -5/Factory | Scanalyzed Lgt. Angular Momentum Engine | -5/Factory | Scanalyzed Flexi-carbon Leg | -5/Factory | Scanalyzed Robot Schematics ------------------ None Fabricated ------------ Imp. Deuterium Engine | x2 | -5/Factory Alien Tech Used ----------------- None Achievements -------------- None Challenges ------------ None Game ------ Seed PersonalGodBox Manual? 0 Play Time 01:51:22 Cumulative 151.1 hours Start 2024.10.09 @ 07:35:47 End 2024.10.09 @ 09:31:48 Sessions 1 Manual Loads 0 Difficulty Adventurer Special Mode None Game No. 198 Rogue 0 Adventurer 198 Explorer 0 Win Type - Total 0 Types 0/0/0/0/0/0/0/0/0 Lore% 56 Gallery% 53 Achievement% 42 Wizard Run 0 Options --------- Layout 2 ASCII 0 Keyboard 0 Movement Mouse Keybinds 0 Fullscreen 2 Font 48/Smallcaps Map View 50x44 Zoom Use 0% Tactical HUD 1 Map Filters NONE Filters NONE Steam 1 RUN: fc9575f6-a988-4c7d-a13a-0d1904e150d2